[Event "*** Titled Tuesday Blitz"]
[Site "Chess.com"]
[Date "2021.03.02"]
[Round "9"]
[White "Vugar_Manafov"]
[Black "jerry_77"]
[Result "1-0"]
[WhiteElo "2643"]
[BlackElo "2484"]
[TimeControl "180+1"]
[EndTime "11:47:05 PST"]
[Termination "Vugar_Manafov won by resignation"]

1. Nf3 {[%clk 0:02:55.5]} 1... Nf6 {[%clk 0:02:59.7]} 2. g3 {[%clk 0:02:56.4]}
2... e6 {[%clk 0:03:00.2]} 3. Bg2 {[%clk 0:02:55.2]} 3... d5 {[%clk 0:03:01.1]}
4. O-O {[%clk 0:02:53.5]} 4... c5 {[%clk 0:03:01.5]} 5. d3 {[%clk 0:02:51.4]}
5... Nc6 {[%clk 0:02:59.4]} 6. Nc3 {[%clk 0:02:50.5]} 6... Qc7 {[%clk
0:02:56.2]} 7. e4 {[%clk 0:02:48.6]} 7... dxe4 {[%clk 0:02:53.1]} 8. dxe4 {[%clk
0:02:48]} 8... a6 {[%clk 0:02:46.2]} 9. Bf4 {[%clk 0:02:46.9]} 9... e5 {[%clk
0:02:45.2]} 10. Bg5 {[%clk 0:02:46]} 10... Be6 {[%clk 0:02:42.7]} 11. Bxf6
{[%clk 0:02:45.3]} 11... gxf6 {[%clk 0:02:43.6]} 12. Nd5 {[%clk 0:02:45.7]}
12... Bxd5 {[%clk 0:02:43.5]} 13. exd5 {[%clk 0:02:46.6]} 13... Nd4 {[%clk
0:02:42.3]} 14. c3 {[%clk 0:02:42.8]} 14... Nxf3+ {[%clk 0:02:41.4]} 15. Qxf3
{[%clk 0:02:43.7]} 15... Qd6 {[%clk 0:02:37.8]} 16. Qf5 {[%clk 0:02:30.7]} 16...
Be7 {[%clk 0:02:34.4]} 17. Be4 {[%clk 0:02:26.7]} 17... h5 {[%clk 0:02:25.1]}
18. h4 {[%clk 0:02:25.3]} 18... b6 {[%clk 0:02:20.5]} 19. a4 {[%clk 0:02:23.2]}
19... a5 {[%clk 0:02:20]} 20. c4 {[%clk 0:02:17.9]} 20... Kf8 {[%clk 0:02:19.6]}
21. Bf3 {[%clk 0:02:12.6]} 21... Kg7 {[%clk 0:02:03.6]} 22. Bxh5 {[%clk
0:02:12]} 22... Rag8 {[%clk 0:02:03.7]} 23. Rae1 {[%clk 0:02:07]} 23... Kf8
{[%clk 0:02:02]} 24. Re4 {[%clk 0:02:06.2]} 24... Ke8 {[%clk 0:01:56.6]} 25. Rg4
{[%clk 0:02:01.8]} 25... Kf8 {[%clk 0:01:36.2]} 26. Re1 {[%clk 0:01:54.5]} 26...
Qd8 {[%clk 0:01:33]} 27. b3 {[%clk 0:01:52.1]} 27... Rxg4 {[%clk 0:01:28.7]} 28.
Bxg4 {[%clk 0:01:48.8]} 28... Bd6 {[%clk 0:01:27]} 29. Re4 {[%clk 0:01:41.5]}
29... Ke7 {[%clk 0:01:23.8]} 30. Bh3 {[%clk 0:01:37.3]} 30... Kf8 {[%clk
0:01:21.9]} 31. Rg4 {[%clk 0:01:36.1]} 31... Rg8 {[%clk 0:01:19.6]} 32. Qh7
{[%clk 0:01:29.6]} 32... Rxg4 {[%clk 0:01:13.3]} 33. Bxg4 {[%clk 0:01:30.5]}
33... Ke7 {[%clk 0:01:13.5]} 34. Be6 {[%clk 0:01:27.6]} 34... Qf8 {[%clk
0:01:13.2]} 35. h5 {[%clk 0:01:26.9]} 35... Ke8 {[%clk 0:01:13]} 36. h6 {[%clk
0:01:20.4]} 36... e4 {[%clk 0:00:37.7]} 37. Qxe4 {[%clk 0:00:48.8]} 37... Qxh6
{[%clk 0:00:36.2]} 38. Bxf7+ {[%clk 0:00:48.8]} 38... Kxf7 {[%clk 0:00:31]} 39.
Qe6+ {[%clk 0:00:47.4]} 39... Kg7 {[%clk 0:00:30.4]} 40. Qxd6 {[%clk 0:00:40.5]}
40... Qc1+ {[%clk 0:00:31]} 41. Kg2 {[%clk 0:00:39.8]} 41... Qc2 {[%clk
0:00:31.5]} 42. Qd7+ {[%clk 0:00:35.2]} 42... Kg6 {[%clk 0:00:31]} 43. Qe8+
{[%clk 0:00:32.1]} 43... Kg7 {[%clk 0:00:30]} 44. d6 {[%clk 0:00:30]} 1-0

[Event "*** Titled Tuesday Blitz"]
[Site "Chess.com"]
[Date "2021.03.02"]
[Round "9"]
[White "sau6on"]
[Black "MrChampion_Coach"]
[Result "0-1"]
[WhiteElo "2535"]
[BlackElo "2493"]
[TimeControl "180+1"]
[EndTime "11:47:06 PST"]
[Termination "MrChampion_Coach won on time"]

1. e4 {[%clk 0:02:52.6]} 1... c5 {[%clk 0:02:58]} 2. Nf3 {[%clk 0:02:52.2]} 2...
d6 {[%clk 0:02:58.4]} 3. d4 {[%clk 0:02:52.8]} 3... cxd4 {[%clk 0:02:59.3]} 4.
Nxd4 {[%clk 0:02:53.5]} 4... Nf6 {[%clk 0:02:59.8]} 5. Nc3 {[%clk 0:02:54]} 5...
a6 {[%clk 0:03:00.4]} 6. Rg1 {[%clk 0:02:47.7]} 6... e5 {[%clk 0:02:55.2]} 7.
Nb3 {[%clk 0:02:47.6]} 7... h5 {[%clk 0:02:55]} 8. h3 {[%clk 0:02:41.6]} 8...
Be6 {[%clk 0:02:53.1]} 9. Bg5 {[%clk 0:02:38.2]} 9... Nbd7 {[%clk 0:02:49.5]}
10. Qd2 {[%clk 0:02:35.5]} 10... Qc7 {[%clk 0:02:45.3]} 11. O-O-O {[%clk
0:02:28.9]} 11... Rc8 {[%clk 0:02:44.9]} 12. g3 {[%clk 0:02:03.1]} 12... b5
{[%clk 0:02:23.8]} 13. Bg2 {[%clk 0:01:59.7]} 13... b4 {[%clk 0:02:14.5]} 14.
Nd5 {[%clk 0:01:56.4]} 14... Nxd5 {[%clk 0:02:13.3]} 15. exd5 {[%clk 0:01:56.9]}
15... Bf5 {[%clk 0:02:13.7]} 16. Na1 {[%clk 0:01:39.9]} 16... Qa5 {[%clk
0:01:51.2]} 17. Kb1 {[%clk 0:01:35.6]} 17... Nb6 {[%clk 0:01:50.2]} 18. a3
{[%clk 0:01:01.2]} 18... Qa4 {[%clk 0:00:56.5]} 19. axb4 {[%clk 0:00:32.8]}
19... a5 {[%clk 0:00:28.1]} 20. bxa5 {[%clk 0:00:19]} 20... Nc4 {[%clk
0:00:23.8]} 21. Qc3 {[%clk 0:00:17.3]} 21... Qb5 {[%clk 0:00:16.8]} 22. Qb3
{[%clk 0:00:13.7]} 22... Bxc2+ {[%clk 0:00:15.4]} 23. Qxc2 {[%clk 0:00:05.1]}
23... Na3+ {[%clk 0:00:15.2]} 24. Kc1 {[%clk 0:00:05.7]} 24... Nxc2 {[%clk
0:00:15.7]} 25. Nxc2 {[%clk 0:00:06.6]} 25... Qxa5 {[%clk 0:00:12.5]} 26. f4
{[%clk 0:00:05.6]} 26... f6 {[%clk 0:00:12.2]} 27. Bh4 {[%clk 0:00:05.2]} 27...
Qa4 {[%clk 0:00:11.2]} 0-1

[Event "*** Titled Tuesday Blitz"]
[Site "Chess.com"]
[Date "2021.03.02"]
[Round "9"]
[White "fabianvivasz"]
[Black "PowerThinking2650"]
[Result "0-1"]
[WhiteElo "2331"]
[BlackElo "2459"]
[TimeControl "180+1"]
[EndTime "11:47:08 PST"]
[Termination "PowerThinking2650 won on time"]

1. e4 {[%clk 0:03:00.9]} 1... e5 {[%clk 0:02:59.7]} 2. Nf3 {[%clk 0:03:00.7]}
2... Nc6 {[%clk 0:02:59.8]} 3. Bc4 {[%clk 0:02:59.4]} 3... Nf6 {[%clk
0:02:59.4]} 4. d3 {[%clk 0:02:53.4]} 4... h6 {[%clk 0:02:59.3]} 5. c3 {[%clk
0:02:48]} 5... d6 {[%clk 0:02:57.7]} 6. O-O {[%clk 0:02:41.5]} 6... g6 {[%clk
0:02:57.3]} 7. d4 {[%clk 0:02:41.5]} 7... Qe7 {[%clk 0:02:56.8]} 8. dxe5 {[%clk
0:02:27]} 8... dxe5 {[%clk 0:02:53.9]} 9. b3 {[%clk 0:02:26.5]} 9... Bg4 {[%clk
0:02:45.3]} 10. Ba3 {[%clk 0:02:22]} 10... Qd7 {[%clk 0:02:45.3]} 11. Qe2 {[%clk
0:01:54.9]} 11... O-O-O {[%clk 0:02:23.6]} 12. Bb5 {[%clk 0:01:43.4]} 12... Bd6
{[%clk 0:01:40.7]} 13. Rd1 {[%clk 0:01:35.1]} 13... Nh5 {[%clk 0:01:37.3]} 14.
Qe3 {[%clk 0:01:16.1]} 14... Kb8 {[%clk 0:00:57.5]} 15. Nxe5 {[%clk 0:00:55.7]}
15... Bxe5 {[%clk 0:00:44.1]} 16. Rxd7 {[%clk 0:00:53.5]} 16... Rxd7 {[%clk
0:00:45]} 17. f3 {[%clk 0:00:24.3]} 17... Rd1+ {[%clk 0:00:44.7]} 18. Bf1 {[%clk
0:00:20.5]} 18... Be6 {[%clk 0:00:32.9]} 19. Bb2 {[%clk 0:00:13.9]} 19... Rhd8
{[%clk 0:00:21.2]} 20. Na3 {[%clk 0:00:13.4]} 20... Rxa1 {[%clk 0:00:21.1]} 21.
Bxa1 {[%clk 0:00:13.8]} 21... Rd1 {[%clk 0:00:20.8]} 22. Bb2 {[%clk 0:00:14.3]}
22... Nf4 {[%clk 0:00:16.4]} 23. Nc4 {[%clk 0:00:13]} 23... g5 {[%clk
0:00:14.7]} 24. Nxe5 {[%clk 0:00:12.2]} 24... Nxe5 {[%clk 0:00:15.5]} 25. c4
{[%clk 0:00:11.9]} 25... Ned3 {[%clk 0:00:13.9]} 26. Bd4 {[%clk 0:00:09]} 26...
b6 {[%clk 0:00:13.6]} 27. c5 {[%clk 0:00:08.6]} 27... Bc8 {[%clk 0:00:10.9]} 28.
cxb6 {[%clk 0:00:08.7]} 28... axb6 {[%clk 0:00:11.8]} 29. g3 {[%clk 0:00:08.6]}
29... Bh3 {[%clk 0:00:10.6]} 30. Qxd3 {[%clk 0:00:05.4]} 30... Nxd3 {[%clk
0:00:09.2]} 0-1

[Event "*** Titled Tuesday Blitz"]
[Site "Chess.com"]
[Date "2021.03.02"]
[Round "9"]
[White "mjray79"]
[Black "paulrusan"]
[Result "0-1"]
[WhiteElo "2460"]
[BlackElo "2352"]
[TimeControl "180+1"]
[EndTime "11:47:12 PST"]
[Termination "paulrusan won by resignation"]

1. d4 {[%clk 0:03:00.9]} 1... Nf6 {[%clk 0:02:59.6]} 2. c4 {[%clk 0:03:00.4]}
2... g6 {[%clk 0:02:58.7]} 3. Nc3 {[%clk 0:02:59.9]} 3... Bg7 {[%clk 0:02:59]}
4. e4 {[%clk 0:03:00.2]} 4... d6 {[%clk 0:02:59.5]} 5. Nge2 {[%clk 0:03:00.3]}
5... O-O {[%clk 0:02:59.9]} 6. Ng3 {[%clk 0:03:00.3]} 6... e5 {[%clk 0:02:58.4]}
7. d5 {[%clk 0:03:00.6]} 7... a5 {[%clk 0:02:53.4]} 8. Be2 {[%clk 0:03:00.4]}
8... Na6 {[%clk 0:02:53.4]} 9. h4 {[%clk 0:03:00.2]} 9... h5 {[%clk 0:02:52.9]}
10. Bg5 {[%clk 0:03:00.4]} 10... Qe8 {[%clk 0:02:48.5]} 11. Qd2 {[%clk 0:02:58]}
11... Nh7 {[%clk 0:02:45.5]} 12. Be3 {[%clk 0:02:56]} 12... Bd7 {[%clk
0:02:41.3]} 13. f3 {[%clk 0:02:48.3]} 13... Nc5 {[%clk 0:02:40.3]} 14. O-O-O
{[%clk 0:02:45.8]} 14... b6 {[%clk 0:02:37.2]} 15. Nf1 {[%clk 0:02:45.4]} 15...
f5 {[%clk 0:02:37]} 16. exf5 {[%clk 0:02:44.8]} 16... gxf5 {[%clk 0:02:35.5]}
17. f4 {[%clk 0:02:45]} 17... e4 {[%clk 0:02:27.1]} 18. Bd4 {[%clk 0:02:42.3]}
18... Nf6 {[%clk 0:02:13.7]} 19. Ne3 {[%clk 0:02:39.1]} 19... Qg6 {[%clk
0:02:05.9]} 20. Rdf1 {[%clk 0:02:26.3]} 20... a4 {[%clk 0:02:02.5]} 21. Rh3
{[%clk 0:02:25.4]} 21... Ng4 {[%clk 0:01:54.1]} 22. Bxg7 {[%clk 0:02:23.5]}
22... Kxg7 {[%clk 0:01:52.4]} 23. Nxg4 {[%clk 0:02:18.7]} 23... fxg4 {[%clk
0:01:48.8]} 24. Re3 {[%clk 0:02:14]} 24... Bf5 {[%clk 0:01:48.6]} 25. Qd4+
{[%clk 0:02:08.4]} 25... Qf6 {[%clk 0:01:48.4]} 26. Qxf6+ {[%clk 0:02:06.1]}
26... Kxf6 {[%clk 0:01:48.5]} 27. Nb5 {[%clk 0:02:06.4]} 27... Rf7 {[%clk
0:01:44]} 28. Nd4 {[%clk 0:02:05.1]} 28... a3 {[%clk 0:01:40.4]} 29. b4 {[%clk
0:02:02.5]} 29... Nd3+ {[%clk 0:01:39.9]} 30. Bxd3 {[%clk 0:01:59.8]} 30... exd3
{[%clk 0:01:40.2]} 31. Nxf5 {[%clk 0:01:57.2]} 31... Kxf5 {[%clk 0:01:40.1]} 32.
g3 {[%clk 0:01:47.8]} 32... Ra4 {[%clk 0:01:37.3]} 33. Kd2 {[%clk 0:01:41.5]}
33... Rxb4 {[%clk 0:01:37.3]} 34. Kc3 {[%clk 0:01:36.5]} 34... Rb2 {[%clk
0:01:35.7]} 35. Rxd3 {[%clk 0:01:36.7]} 35... Re7 {[%clk 0:01:31]} 36. Rd2
{[%clk 0:01:30.3]} 36... Re3+ {[%clk 0:01:28.3]} 37. Rd3 {[%clk 0:01:30.2]}
37... Ree2 {[%clk 0:01:21.9]} 38. Kd4 {[%clk 0:01:27.7]} 38... Rxa2 {[%clk
0:01:05.2]} 39. Rc1 {[%clk 0:01:27.1]} 39... Re4+ {[%clk 0:01:01.5]} 40. Kc3
{[%clk 0:01:26.3]} 40... Rf2 {[%clk 0:00:56.2]} 41. Ra1 {[%clk 0:01:21.2]} 41...
a2 {[%clk 0:00:56.2]} 42. Kb3 {[%clk 0:01:17.6]} 42... Rf3 {[%clk 0:00:56.4]}
43. Kc3 {[%clk 0:01:12.7]} 43... Ree3 {[%clk 0:00:50.3]} 44. Rxe3 {[%clk
0:01:11.9]} 44... Rxe3+ {[%clk 0:00:50.3]} 45. Kd4 {[%clk 0:01:12.8]} 45... Ra3
{[%clk 0:00:49.2]} 46. c5 {[%clk 0:01:06.5]} 46... bxc5+ {[%clk 0:00:48.7]} 47.
Kc4 {[%clk 0:01:06.7]} 47... Rxg3 {[%clk 0:00:47.6]} 48. Rxa2 {[%clk 0:01:06.5]}
48... Rf3 {[%clk 0:00:43.7]} 49. Ra7 {[%clk 0:01:06]} 49... Rxf4+ {[%clk
0:00:43.9]} 50. Kb5 {[%clk 0:01:06.4]} 50... Ke5 {[%clk 0:00:36.9]} 51. Kc6
{[%clk 0:01:04.3]} 51... Rf7 {[%clk 0:00:36.7]} 52. Ra8 {[%clk 0:01:02.1]} 52...
Rg7 {[%clk 0:00:35.9]} 53. Rh8 {[%clk 0:00:55.1]} 53... g3 {[%clk 0:00:31.9]}
54. Rxh5+ {[%clk 0:00:55.1]} 54... Kf4 {[%clk 0:00:31.7]} 55. Rh8 {[%clk
0:00:55.1]} 55... g2 {[%clk 0:00:31.3]} 56. Rf8+ {[%clk 0:00:55.3]} 56... Ke5
{[%clk 0:00:28.7]} 57. Re8+ {[%clk 0:00:54]} 57... Kd4 {[%clk 0:00:27]} 58. Re1
{[%clk 0:00:53.7]} 58... g1=Q {[%clk 0:00:25.4]} 59. Rf1 {[%clk 0:00:53.2]} 0-1

[Event "*** Titled Tuesday Blitz"]
[Site "Chess.com"]
[Date "2021.03.02"]
[Round "9"]
[White "CraiggoryC"]
[Black "Tekushka"]
[Result "0-1"]
[WhiteElo "2262"]
[BlackElo "2431"]
[TimeControl "180+1"]
[EndTime "11:47:12 PST"]
[Termination "Tekushka won on time"]

1. e4 {[%clk 0:02:50.4]} 1... e6 {[%clk 0:02:59.5]} 2. d4 {[%clk 0:02:49.7]}
2... d5 {[%clk 0:02:59.8]} 3. e5 {[%clk 0:02:50.3]} 3... c5 {[%clk 0:02:59.2]}
4. c3 {[%clk 0:02:51]} 4... Nc6 {[%clk 0:02:59.3]} 5. Nf3 {[%clk 0:02:51.6]}
5... Qb6 {[%clk 0:02:59.7]} 6. a3 {[%clk 0:02:51.3]} 6... cxd4 {[%clk
0:02:50.2]} 7. cxd4 {[%clk 0:02:52.2]} 7... Nh6 {[%clk 0:02:45.4]} 8. Nc3 {[%clk
0:02:50.1]} 8... Nf5 {[%clk 0:02:44]} 9. Na4 {[%clk 0:02:49.6]} 9... Qa5+ {[%clk
0:02:33.3]} 10. b4 {[%clk 0:02:32.2]} 10... Qd8 {[%clk 0:02:14.1]} 11. Be3
{[%clk 0:02:24]} 11... Nxe3 {[%clk 0:01:57.6]} 12. fxe3 {[%clk 0:02:23.7]} 12...
g6 {[%clk 0:01:58]} 13. Bd3 {[%clk 0:02:01.6]} 13... Bh6 {[%clk 0:01:53.2]} 14.
Qe2 {[%clk 0:02:01.7]} 14... O-O {[%clk 0:01:53.1]} 15. O-O {[%clk 0:02:01.1]}
15... b6 {[%clk 0:01:45.7]} 16. Rac1 {[%clk 0:01:51.7]} 16... Bd7 {[%clk
0:01:45.6]} 17. Bb5 {[%clk 0:01:30.6]} 17... Ne7 {[%clk 0:01:42.8]} 18. Rc3
{[%clk 0:00:59.9]} 18... Nf5 {[%clk 0:01:17]} 19. Bxd7 {[%clk 0:00:55]} 19...
Qxd7 {[%clk 0:01:15.9]} 20. Nb2 {[%clk 0:00:55.2]} 20... Rac8 {[%clk 0:01:10.4]}
21. Rxc8 {[%clk 0:00:19]} 21... Rxc8 {[%clk 0:00:48.2]} 22. Nd1 {[%clk
0:00:18.4]} 22... Qa4 {[%clk 0:00:47.4]} 23. e4 {[%clk 0:00:14.6]} 23... Rc2
{[%clk 0:00:41.7]} 24. Qe1 {[%clk 0:00:13.4]} 24... Ne7 {[%clk 0:00:27.2]} 25.
Ne3 {[%clk 0:00:12.2]} 25... Ra2 {[%clk 0:00:24.4]} 26. exd5 {[%clk 0:00:11.6]}
26... Bxe3+ {[%clk 0:00:22.3]} 27. Qxe3 {[%clk 0:00:11.8]} 27... Nxd5 {[%clk
0:00:23]} 28. Qg5 {[%clk 0:00:11.4]} 28... Qxa3 {[%clk 0:00:20.4]} 29. Qd8+
{[%clk 0:00:11.4]} 29... Kg7 {[%clk 0:00:20.5]} 30. Ng5 {[%clk 0:00:10.8]} 30...
Qe3+ {[%clk 0:00:20.4]} 31. Kh1 {[%clk 0:00:10.1]} 31... Rf2 {[%clk 0:00:19.4]}
32. Nxe6+ {[%clk 0:00:02.8]} 32... fxe6 {[%clk 0:00:17.9]} 33. Qd7+ {[%clk
0:00:03.1]} 33... Kh6 {[%clk 0:00:18]} 34. Rg1 {[%clk 0:00:01.2]} 34... Re2
{[%clk 0:00:13.7]} 35. Qxe6 {[%clk 0:00:01.2]} 35... Re1 {[%clk 0:00:13.6]} 0-1

[Event "*** Titled Tuesday Blitz"]
[Site "Chess.com"]
[Date "2021.03.02"]
[Round "9"]
[White "HouseOfDurin"]
[Black "AniJak"]
[Result "0-1"]
[WhiteElo "2177"]
[BlackElo "2326"]
[TimeControl "180+1"]
[EndTime "11:47:12 PST"]
[Termination "AniJak won on time"]

1. d4 {[%clk 0:03:00.9]} 1... f5 {[%clk 0:02:59.6]} 2. Bg5 {[%clk 0:03:01.1]}
2... g6 {[%clk 0:02:59.2]} 3. h4 {[%clk 0:03:00.2]} 3... Bg7 {[%clk 0:02:58.7]}
4. c4 {[%clk 0:02:59.1]} 4... h6 {[%clk 0:02:55.9]} 5. Bf4 {[%clk 0:02:58.8]}
5... d6 {[%clk 0:02:54]} 6. Nf3 {[%clk 0:02:57.6]} 6... Nc6 {[%clk 0:02:52.2]}
7. Nc3 {[%clk 0:02:54]} 7... Nf6 {[%clk 0:02:32.2]} 8. d5 {[%clk 0:02:51.1]}
8... Na5 {[%clk 0:02:26.9]} 9. Qa4+ {[%clk 0:02:36.7]} 9... c6 {[%clk
0:02:26.7]} 10. e3 {[%clk 0:02:14.9]} 10... O-O {[%clk 0:01:58.5]} 11. O-O-O
{[%clk 0:01:59.6]} 11... Ng4 {[%clk 0:01:49.7]} 12. Bg3 {[%clk 0:01:43.4]} 12...
cxd5 {[%clk 0:01:31.6]} 13. Nxd5 {[%clk 0:01:29.1]} 13... Bd7 {[%clk 0:01:31.3]}
14. Nxe7+ {[%clk 0:00:45.8]} 14... Kh7 {[%clk 0:01:30.6]} 15. Qb4 {[%clk
0:00:45.4]} 15... Qxe7 {[%clk 0:01:10.2]} 16. Qxa5 {[%clk 0:00:44.7]} 16... Ne5
{[%clk 0:00:37.9]} 17. Nxe5 {[%clk 0:00:39]} 17... dxe5 {[%clk 0:00:38]} 18. Qc7
{[%clk 0:00:31]} 18... Rfd8 {[%clk 0:00:32.4]} 19. Be2 {[%clk 0:00:15.4]} 19...
b5 {[%clk 0:00:24.5]} 20. Qd6 {[%clk 0:00:13.8]} 20... Qf7 {[%clk 0:00:19.7]}
21. cxb5 {[%clk 0:00:11.3]} 21... Rac8+ {[%clk 0:00:18.1]} 22. Kb1 {[%clk
0:00:11.3]} 22... Be6 {[%clk 0:00:18.5]} 23. Qxd8 {[%clk 0:00:10.7]} 23... Bxa2+
{[%clk 0:00:18.6]} 24. Ka1 {[%clk 0:00:10.4]} 24... Rxd8 {[%clk 0:00:17.7]} 25.
Rxd8 {[%clk 0:00:11.3]} 25... Bb3 {[%clk 0:00:16.8]} 26. Rc1 {[%clk 0:00:09.5]}
26... Qe7 {[%clk 0:00:15.2]} 27. Rd3 {[%clk 0:00:08.5]} 27... Bg8 {[%clk
0:00:12.7]} 28. Ra3 {[%clk 0:00:08.1]} 28... f4 {[%clk 0:00:09.9]} 29. Bh2
{[%clk 0:00:06.9]} 29... fxe3 {[%clk 0:00:09.3]} 30. Rxe3 {[%clk 0:00:05.5]}
30... e4 {[%clk 0:00:08.9]} 0-1

[Event "*** Titled Tuesday Blitz"]
[Site "Chess.com"]
[Date "2021.03.02"]
[Round "9"]
[White "Lyschko"]
[Black "Chernov_Alexander_A"]
[Result "0-1"]
[WhiteElo "2186"]
[BlackElo "2286"]
[TimeControl "180+1"]
[EndTime "11:47:12 PST"]
[Termination "Chernov_Alexander_A won on time"]

1. c4 {[%clk 0:03:00.9]} 1... Nf6 {[%clk 0:02:59.3]} 2. Nc3 {[%clk 0:02:59.7]}
2... e5 {[%clk 0:02:58.4]} 3. Nf3 {[%clk 0:02:58.7]} 3... d6 {[%clk 0:02:58]} 4.
d4 {[%clk 0:02:57.8]} 4... Nbd7 {[%clk 0:02:57.4]} 5. e4 {[%clk 0:02:57.2]} 5...
c6 {[%clk 0:02:57.3]} 6. Be2 {[%clk 0:02:56.7]} 6... a6 {[%clk 0:02:57.4]} 7.
O-O {[%clk 0:02:56.3]} 7... b5 {[%clk 0:02:57.5]} 8. a3 {[%clk 0:02:51.7]} 8...
Be7 {[%clk 0:02:56.8]} 9. Qc2 {[%clk 0:02:47.6]} 9... O-O {[%clk 0:02:55.9]} 10.
h3 {[%clk 0:02:47.3]} 10... Bb7 {[%clk 0:02:55.3]} 11. Be3 {[%clk 0:02:45.6]}
11... Rc8 {[%clk 0:02:50.7]} 12. Qb3 {[%clk 0:02:35.5]} 12... exd4 {[%clk
0:02:35.8]} 13. Nxd4 {[%clk 0:02:32.6]} 13... c5 {[%clk 0:02:32.6]} 14. Nf5
{[%clk 0:02:25.5]} 14... Nxe4 {[%clk 0:02:27.6]} 15. Nxe4 {[%clk 0:02:23.3]}
15... Bxe4 {[%clk 0:02:27.4]} 16. Nxe7+ {[%clk 0:02:22.8]} 16... Qxe7 {[%clk
0:02:27.5]} 17. cxb5 {[%clk 0:02:22.4]} 17... axb5 {[%clk 0:02:20.9]} 18. Bxb5
{[%clk 0:02:16.2]} 18... Ne5 {[%clk 0:01:59.4]} 19. Rad1 {[%clk 0:02:05.4]}
19... c4 {[%clk 0:01:58.2]} 20. Qb4 {[%clk 0:01:51.3]} 20... Bd3 {[%clk
0:01:54]} 21. Rfe1 {[%clk 0:01:48.2]} 21... Qb7 {[%clk 0:01:42.7]} 22. a4 {[%clk
0:01:40.5]} 22... d5 {[%clk 0:01:32.3]} 23. Bf4 {[%clk 0:01:30.9]} 23... Ng6
{[%clk 0:01:31.3]} 24. Bg3 {[%clk 0:01:28.8]} 24... h5 {[%clk 0:01:30.2]} 25. h4
{[%clk 0:01:24]} 25... Be4 {[%clk 0:01:19.1]} 26. Qc3 {[%clk 0:01:07.4]} 26...
Qa7 {[%clk 0:01:02.1]} 27. Rd4 {[%clk 0:01:04]} 27... Ne7 {[%clk 0:00:56.8]} 28.
Bd6 {[%clk 0:00:58.3]} 28... Nf5 {[%clk 0:00:56.2]} 29. Rdxe4 {[%clk 0:00:50.6]}
29... Nxd6 {[%clk 0:00:53.1]} 30. Re5 {[%clk 0:00:42.1]} 30... Nxb5 {[%clk
0:00:52]} 31. axb5 {[%clk 0:00:41.1]} 31... d4 {[%clk 0:00:51.5]} 32. Qg3 {[%clk
0:00:40.6]} 32... c3 {[%clk 0:00:49.2]} 33. bxc3 {[%clk 0:00:38.1]} 33... dxc3
{[%clk 0:00:49.2]} 34. Rxh5 {[%clk 0:00:34.5]} 34... c2 {[%clk 0:00:47.9]} 35.
Rc1 {[%clk 0:00:29.8]} 35... Rfd8 {[%clk 0:00:46.8]} 36. Rg5 {[%clk 0:00:24.3]}
36... Rd1+ {[%clk 0:00:44.3]} 37. Kh2 {[%clk 0:00:24.2]} 37... Qd4 {[%clk
0:00:41.7]} 38. Qh3 {[%clk 0:00:07.7]} 38... Qf4+ {[%clk 0:00:34.9]} 39. Rg3
{[%clk 0:00:03.8]} 39... Rc4 {[%clk 0:00:31.5]} 0-1

[Event "*** Titled Tuesday Blitz"]
[Site "Chess.com"]
[Date "2021.03.02"]
[Round "9"]
[White "LuisFSiles"]
[Black "fridaywins"]
[Result "1-0"]
[WhiteElo "2314"]
[BlackElo "2146"]
[TimeControl "180+1"]
[EndTime "11:47:14 PST"]
[Termination "LuisFSiles won by resignation"]

1. e4 {[%clk 0:03:00.9]} 1... e5 {[%clk 0:02:59.1]} 2. Nf3 {[%clk 0:03:00.2]}
2... Nc6 {[%clk 0:02:59.6]} 3. Bc4 {[%clk 0:02:59]} 3... Bc5 {[%clk 0:02:58.8]}
4. O-O {[%clk 0:02:57.8]} 4... d6 {[%clk 0:02:57.4]} 5. c3 {[%clk 0:02:55.6]}
5... Qe7 {[%clk 0:02:57]} 6. d3 {[%clk 0:02:45.9]} 6... Nf6 {[%clk 0:02:55.9]}
7. a4 {[%clk 0:02:42.3]} 7... a5 {[%clk 0:02:36]} 8. Be3 {[%clk 0:02:28]} 8...
O-O {[%clk 0:02:32]} 9. Nbd2 {[%clk 0:02:19.3]} 9... Bxe3 {[%clk 0:02:21.5]} 10.
fxe3 {[%clk 0:02:18]} 10... Be6 {[%clk 0:02:22.4]} 11. Bxe6 {[%clk 0:02:04.3]}
11... Qxe6 {[%clk 0:02:12.7]} 12. Qe2 {[%clk 0:01:52.8]} 12... d5 {[%clk
0:02:00.2]} 13. exd5 {[%clk 0:01:49.6]} 13... Nxd5 {[%clk 0:01:57.7]} 14. Ne4
{[%clk 0:01:38.5]} 14... b6 {[%clk 0:01:53.7]} 15. c4 {[%clk 0:01:34.7]} 15...
Ndb4 {[%clk 0:01:50.1]} 16. Nfg5 {[%clk 0:01:24.8]} 16... Qg6 {[%clk 0:01:47.1]}
17. Rf3 {[%clk 0:01:18]} 17... h6 {[%clk 0:01:45.2]} 18. Rg3 {[%clk 0:00:56.7]}
18... hxg5 {[%clk 0:01:37.5]} 19. Rxg5 {[%clk 0:00:56.5]} 19... Qh6 {[%clk
0:01:36.7]} 20. Rh5 {[%clk 0:00:49.8]} 20... Qe6 {[%clk 0:01:33.8]} 21. Ng5
{[%clk 0:00:42.8]} 21... Qg6 {[%clk 0:01:33.5]} 22. Qg4 {[%clk 0:00:37.6]} 22...
f6 {[%clk 0:00:47.8]} 23. Qe6+ {[%clk 0:00:36.1]} 23... Rf7 {[%clk 0:00:47.3]}
24. g4 {[%clk 0:00:19.5]} 24... Rd8 {[%clk 0:00:26.1]} 25. Nxf7 {[%clk
0:00:17.8]} 25... Qxf7 {[%clk 0:00:25.5]} 26. Rh8+ {[%clk 0:00:17.9]} 26... Kxh8
{[%clk 0:00:24.3]} 27. Qxf7 {[%clk 0:00:18.8]} 27... Rxd3 {[%clk 0:00:20.1]} 28.
Rf1 {[%clk 0:00:18]} 28... Rxe3 {[%clk 0:00:19.7]} 29. Qe8+ {[%clk 0:00:18]}
29... Kh7 {[%clk 0:00:19.3]} 30. Rf5 {[%clk 0:00:18.6]} 30... Rh3 {[%clk
0:00:18.3]} 31. Rh5+ {[%clk 0:00:18]} 31... Rxh5 {[%clk 0:00:18.2]} 32. gxh5
{[%clk 0:00:18.9]} 32... Nd4 {[%clk 0:00:14.4]} 33. Qg6+ {[%clk 0:00:19.3]}
33... Kh8 {[%clk 0:00:14.5]} 34. Qe8+ {[%clk 0:00:18.9]} 34... Kh7 {[%clk
0:00:14.2]} 35. Qg6+ {[%clk 0:00:19.6]} 35... Kh8 {[%clk 0:00:14.1]} 36. h6
{[%clk 0:00:20]} 36... Nf3+ {[%clk 0:00:09.2]} 37. Kf2 {[%clk 0:00:18.6]} 1-0